bitfinex-derivatives/quotes_ETHF0:USTF0_20230830
["timestamp","ask_amount","ask_price","bid_price","bid_amount"]
[1693365711936,0.3948,1715.7,1715.3,5.242]
[1693365712128,2.4962,1715.6,1715.3,7.8609]
[1693365712334,0.3948,1715.5,1715.3,7.8609]
[1693365712528,0.3948,1715.5,1715.3,9.29448176]
[1693365713435,5.704,1715.6,1715.3,9.29448176]
[1693365713742,0.3948,1715.5,1715.3,9.29448176]
[1693365714334,0.3948,1715.5,1715.3,7.8609]
[1693365715334,0.3948,1715.5,1715.3,9.29448176]
[1693365717546,5.6368,1715.5,1715.3,2.6189]
[1693365719338,5.6368,1715.5,1715.2,7.8609]
[1693365719535,2.4749,1715.4,1715.2,7.8609]
[1693365719839,2.4749,1715.4,1715.2,9.29448176]
[1693365720236,2.4749,1715.4,1715.3,2.26993648]
[1693365720446,6.18572195,1715.6,1715.3,7.51193648]
[1693365720640,2.4749,1715.5,1715.4,1.43358176]
[1693365721039,6.18572195,1715.6,1715.4,1.43358176]
[1693365721345,8.66062195,1715.6,1715.4,1.43358176]
[1693365721844,8.66062195,1715.6,1715.5,5.242]
[1693365722443,2.94072195,1715.6,1715.5,7.51193648]
[1693365722638,2.94072195,1715.6,1715.5,10.71973648]
[1693365722840,0.46582195,1715.6,1715.5,10.71973648]
[1693365723040,2.4679,1715.7,1715.5,10.71973648]
[1693365723241,2.4679,1715.7,1715.6,1.43358176]
[1693365723746,7.7099,1715.7,1715.5,2.26993648]
[1693365723941,7.7099,1715.7,1715.4,2.5064]
[1693365724239,0.3948,1715.6,1715.4,4.77633648]
[1693365724639,0.3948,1715.6,1715.4,6.20991824]
[1693365724839,3.6026,1715.6,1715.4,3.70351824]
[1693365726136,3.2078,1715.6,1715.5,5.242]
[1693365728942,2.4679,1715.7,1715.5,5.242]
[1693365729247,2.4679,1715.7,1715.6,1.43358176]
[1693365729446,2.8627,1715.7,1715.5,5.242]
[1693365729840,2.8627,1715.7,1715.6,1.43358176]
[1693365730946,2.8627,1715.7,1715.5,7.8465]
[1693365731146,2.8627,1715.7,1715.5,9.28008176]
[1693365731448,2.8627,1715.7,1715.5,7.8465]
[1693365731944,2.8627,1715.7,1715.5,2.6045]
[1693365731945,8.1047,1715.7,1715.5,2.6045]
[1693365732540,2.8627,1715.7,1715.5,2.6045]
[1693365735348,2.8627,1715.7,1715.6,1.43358176]
[1693365735648,2.8627,1715.7,1715.5,2.6045]
[1693365735649,2.4679,1715.7,1715.5,2.6045]
[1693365735846,2.8627,1715.7,1715.5,2.6045]
[1693365737250,2.8627,1715.7,1715.5,4.03808176]
[1693365737547,2.4679,1715.7,1715.5,4.03808176]
[1693365738146,2.8627,1715.7,1715.5,4.03808176]
[1693365738849,2.8627,1715.7,1715.4,7.51193648]
[1693365739648,2.8627,1715.7,1715.4,5.242]
[1693365740252,2.8627,1715.7,1715.5,1.43358176]
[1693365741450,7.42369924,1715.7,1715.5,1.43358176]
[1693365743852,7.42369924,1715.7,1715.4,7.51193648]
[1693365744047,5.242,1715.6,1715.3,10.1776]
[1693365744252,0.3948,1715.5,1715.3,10.1776]
[1693365744454,3.0187,1715.5,1715.3,10.1776]
[1693365745547,3.0187,1715.5,1715.3,7.6712]
[1693365747047,7.57969924,1715.5,1715.3,7.6712]
[1693365749254,3.2078,1715.4,1715.2,5.242]
[1693365749459,4.95579924,1715.3,1715.2,5.242]
[1693365749651,10.19779924,1715.3,1715.1,2.4422]
[1693365749849,12.66139924,1715.3,1715.1,2.4422]
[1693365753650,12.66139924,1715.3,1715.0,7.787]
[1693365753853,8.1004,1715.3,1715.0,10.2769]
[1693365754458,5.242,1715.2,1715.0,2.4899]
[1693365754758,5.6368,1715.1,1714.7,2.5011]
[1693365755057,5.6368,1715.1,1714.8,0.00746164]
[1693365755058,3.2078,1715.0,1714.8,0.00746164]
[1693365755359,5.743,1715.0,1714.8,1.4410434]
[1693365755555,5.743,1715.0,1714.8,6.6830434]
[1693365755755,3.2078,1715.0,1714.8,6.6830434]
[1693365755960,3.2078,1715.2,1714.9,8.4498]
[1693365756256,0.3948,1715.1,1714.9,3.2078]
[1693365756453,0.41615074,1715.1,1715.0,5.242]
[1693365756657,0.41615074,1715.1,1715.0,8.94551824]
[1693365756959,7.8008,1715.3,1715.0,8.94551824]
[1693365757160,5.4537154,1715.3,1715.0,8.94551824]
[1693365757356,5.4537154,1715.3,1715.0,13.94261824]
[1693365757856,0.3948,1715.2,1715.0,13.94261824]
[1693365758058,5.4537154,1715.3,1715.0,13.94261824]
[1693365758458,2.5588,1715.3,1715.1,5.242]
[1693365758662,2.5588,1715.3,1715.2,1.43358176]
[1693365758858,3.42493757,1715.3,1715.2,1.43358176]
[1693365759863,3.42493757,1715.3,1715.1,7.51193648]
[1693365760062,3.42493757,1715.3,1715.1,8.94551824]
[1693365760863,3.42493757,1715.3,1715.1,7.51193648]
[1693365761864,3.42493757,1715.3,1715.1,2.26993648]
[1693365762863,3.42493757,1715.3,1715.0,10.2391]
[1693365762864,8.66693757,1715.3,1715.0,10.2391]
[1693365763963,8.66693757,1715.3,1715.1,1.43358176]
[1693365764364,8.66693757,1715.3,1715.0,10.2391]
[1693365765069,8.66693757,1715.3,1715.1,1.43358176]
[1693365768573,8.66693757,1715.3,1715.0,12.50903648]
[1693365769168,8.66693757,1715.3,1715.1,1.43358176]
[1693365775177,8.66693757,1715.3,1715.0,12.50903648]
[1693365777476,8.66693757,1715.3,1715.0,10.2391]
[1693365778173,3.2078,1715.2,1715.0,10.2391]
[1693365778476,3.2078,1715.2,1715.0,11.67268176]
[1693365778978,0.3948,1715.1,1715.0,11.67268176]
[1693365779173,0.3948,1715.1,1715.0,7.7917]
[1693365779372,3.0185,1715.1,1715.0,7.7917]
[1693365780379,3.0185,1715.1,1715.0,2.5497]
[1693365781775,3.0185,1715.1,1714.9,5.242]
[1693365782774,2.6237,1715.1,1714.9,6.67558176]
[1693365783279,5.71333757,1715.3,1715.0,7.51193648]
[1693365783480,0.3948,1715.2,1715.1,1.43358176]
[1693365783881,0.3948,1715.2,1714.6,0.47377997]
[1693365783882,10.011,1715.2,1714.6,0.47377997]
[1693365784077,5.242,1714.9,1714.6,2.4304]
[1693365784280,5.242,1714.9,1714.7,1.43358176]
[1693365784581,5.242,1714.9,1714.6,9.94233648]
[1693365784582,2.4132,1714.8,1714.6,9.94233648]
[1693365784884,2.4132,1714.8,1714.6,11.37591824]
[1693365785272,5.532,1714.7,1714.5,0.46936144]
[1693365785472,5.532,1714.7,1714.5,1.43358176]
[1693365785473,0.6848,1714.7,1714.5,1.43358176]
[1693365785675,10.863,1714.8,1714.5,3.70351824]
[1693365785871,4.3746,1714.6,1714.4,0.2148]
[1693365786076,0.3948,1714.5,1714.4,0.2148]
[1693365786780,5.6368,1714.5,1714.4,0.2148]
[1693365787782,5.6368,1714.5,1714.0,2.4479]
[1693365787976,5.242,1714.3,1714.0,2.4479]
[1693365788178,5.242,1714.4,1714.1,12.15331824]
[1693365788378,7.7061,1714.4,1714.1,12.15331824]
[1693365788584,0.3948,1714.3,1714.1,12.15331824]
[1693365789279,5.242,1714.2,1714.1,6.91131824]
[1693365789475,5.242,1714.2,1714.0,2.4479]
[1693365789675,5.242,1714.2,1714.0,3.97535315]
[1693365789982,5.242,1714.2,1714.0,2.4479]
[1693365790183,5.242,1714.2,1714.0,3.88148176]
[1693365790378,5.242,1714.2,1713.9,4.50419389]
[1693365790681,0.3948,1714.1,1713.9,9.27365315]
[1693365790886,0.3948,1714.1,1713.9,11.54358963]
[1693365791183,0.3948,1714.1,1714.0,0.006342]
[1693365791882,59.993658,1714.0,1713.9,6.30158963]
[1693365792275,59.993658,1714.0,1713.9,9.24002096]
[1693365792679,58.53506853,1714.0,1713.9,11.41608605]
[1693365792882,58.53506853,1714.0,1713.9,7.71256781]
[1693365793986,58.53506853,1714.0,1713.9,9.14614957]
[1693365795386,58.53506853,1714.0,1713.9,7.71256781]
[1693365796789,63.77706853,1714.0,1713.9,6.72896915]
[1693365797582,63.77706853,1714.0,1713.9,4.43778942]
[1693365798089,66.98486853,1714.0,1713.9,4.43778942]
[1693365798387,66.98486853,1714.0,1713.7,1.87570134]
[1693365798589,5.242,1713.8,1713.7,1.87570134]
[1693365798783,14.8591,1713.8,1713.7,0.3551]
[1693365799084,17.2792,1713.8,1713.7,0.3551]
[1693365799290,0.03917093,1713.7,1713.6,1.43358176]
[1693365799487,58.53506853,1714.0,1713.6,10.28104105]
[1693365799692,58.53506853,1714.0,1713.8,8.4498]
[1693365799987,58.53506853,1714.0,1713.9,8.94551824]
[1693365800189,58.53506853,1714.0,1713.9,7.51193648]
[1693365800490,63.77706853,1714.0,1713.7,2.5222]
[1693365800686,5.242,1713.8,1713.7,2.5222]
[1693365801088,5.28117093,1713.8,1713.7,2.5222]
[1693365801591,61.74286853,1714.0,1713.7,9.19778176]
[1693365801789,58.53506853,1714.0,1713.8,8.4498]
[1693365801995,58.53506853,1714.0,1713.9,1.43358176]
[1693365802185,58.53506853,1714.0,1713.9,6.67558176]
[1693365802485,54.16826853,1714.0,1713.9,7.84228176]
[1693365802685,27.28970887,1714.0,1713.9,16.82442052]
[1693365802887,25.68200887,1714.0,1713.9,16.82442052]
[1693365803186,25.09860887,1714.0,1713.9,16.82442052]
[1693365803586,24.51520887,1714.0,1713.9,16.82442052]
[1693365803787,24.51520887,1714.0,1713.9,7.46153742]
[1693365803788,24.5543798,1714.0,1713.9,7.46153742]
[1693365804088,24.51520887,1714.0,1713.9,1.43358176]
[1693365805197,24.51520887,1714.0,1713.9,6.67558176]
[1693365811196,24.5543798,1714.0,1713.9,6.67558176]
[1693365811693,24.5543798,1714.0,1713.9,5.242]
[1693365812294,27.0735798,1714.0,1713.9,5.242]
[1693365812688,27.0735798,1714.0,1713.9,6.67558176]
[1693365813290,27.0735798,1714.0,1713.9,5.242]
[1693365813689,27.0735798,1714.0,1713.9,8.1961831]
[1693365813995,27.03440887,1714.0,1713.9,8.1961831]
[1693365814400,27.0735798,1714.0,1713.9,6.76260134]
[1693365814596,27.0735798,1714.0,1713.9,6.67558176]
[1693365814896,27.03440887,1714.0,1713.9,6.67558176]
[1693365815597,27.0735798,1714.0,1713.9,5.242]
[1693365817499,27.0735798,1714.0,1713.9,6.67558176]
[1693365818001,27.0735798,1714.0,1713.9,8.1961831]
[1693365818393,27.03440887,1714.0,1713.9,6.67558176]
[1693365818698,27.03440887,1714.0,1713.9,8.1961831]
[1693365819798,27.03440887,1714.0,1713.9,11.1133294]
[1693365819998,27.03440887,1714.0,1713.9,8.1961831]
[1693365820601,27.03440887,1714.0,1713.9,11.11334452]
[1693365821400,24.51520887,1714.0,1713.9,19.35054585]
[1693365822691,24.51520887,1714.0,1713.9,20.11427242]
[1693365824597,24.51520887,1714.0,1713.9,17.05936612]
[1693365825003,24.51520887,1714.0,1713.9,20.877999]
[1693365825396,24.51520887,1714.0,1713.9,28.56771314]
[1693365825601,22.473417,1714.0,1713.9,24.74908026]
[1693365825794,22.473417,1714.0,1713.9,29.33143972]
[1693365827599,22.473417,1714.0,1713.9,24.74908026]
[1693365828999,22.473417,1714.0,1713.9,29.33143972]
[1693365830706,21.931317,1714.0,1713.9,29.33143972]
[1693365832703,20.47295467,1714.0,1713.9,29.33143972]
[1693365833604,20.47295467,1714.0,1713.9,24.74908026]
[1693365834708,20.44615467,1714.0,1713.9,24.74908026]
[1693365835707,20.44615467,1714.0,1713.9,28.5683751]
[1693365836215,22.93235467,1714.0,1713.9,28.5683751]
[1693365836599,22.93235467,1714.0,1713.9,27.804347]
[1693365836803,22.93235467,1714.0,1713.9,19.8477511]
[1693365837105,22.34895467,1714.0,1713.9,18.22606612]
[1693365837507,21.76555467,1714.0,1713.9,20.51754176]
[1693365837805,24.16915467,1714.0,1713.9,20.51754176]
[1693365838010,24.2083256,1714.0,1713.9,19.08396]
[1693365838512,23.85815467,1714.0,1713.9,20.51754176]
[1693365838705,23.8973256,1714.0,1713.9,19.7537056]
[1693365839313,23.8973256,1714.0,1713.9,15.40296242]
[1693365839502,23.8973256,1714.0,1713.9,13.87532294]
[1693365841110,23.85815467,1714.0,1713.9,15.3089047]
[1693365841807,23.8973256,1714.0,1713.9,15.3089047]
[1693365842600,23.8973256,1714.0,1713.9,10.0669047]
[1693365842808,23.8973256,1714.0,1713.9,15.3089047]
[1693365843014,23.8973256,1714.0,1713.9,13.87532294]
[1693365843811,23.8973256,1714.0,1713.9,15.3089047]
[1693365844811,23.85815467,1714.0,1713.9,15.3089047]
[1693365847014,23.8973256,1714.0,1713.9,15.3089047]
[1693365847511,23.85815467,1714.0,1713.9,15.3089047]
[1693365847714,23.8973256,1714.0,1713.9,15.3089047]
[1693365848515,23.85815467,1714.0,1713.9,15.3089047]
[1693365850411,23.8973256,1714.0,1713.9,5.242]
[1693365851715,23.85815467,1714.0,1713.9,6.67558176]
[1693365853108,23.8973256,1714.0,1713.9,6.67558176]
[1693365853715,23.85815467,1714.0,1713.9,6.67558176]
[1693365856911,23.8973256,1714.0,1713.9,6.67558176]
[1693365857511,23.85815467,1714.0,1713.9,6.67558176]
[1693365857715,23.8973256,1714.0,1713.9,5.242]
[1693365871824,27.69495519,1714.0,1713.9,5.242]
[1693365873531,27.69495519,1714.0,1713.9,6.67558176]
[1693365874828,27.69495519,1714.0,1713.9,5.242]
[1693365879735,23.8973256,1714.0,1713.9,5.242]
[1693365884951,28.4565765,1714.0,1713.8,3.67961832]
[1693365885146,28.4565765,1714.0,1713.8,0.47181832]
[1693365885453,28.4565765,1714.0,1713.7,5.242]
[1693365885751,3.7996892,1713.8,1713.7,5.242]
[1693365885951,3.83886013,1713.8,1713.7,5.71970529]
[1693365886251,0.03917093,1713.8,1713.7,5.71970529]
[1693365886453,3.83798804,1713.8,1713.7,5.71970529]
[1693365888252,3.83798804,1713.8,1713.6,9.6167]
[1693365888448,5.1428,1713.7,1713.6,9.6167]
[1693365889350,14.18361711,1713.7,1713.5,0.45913043]
[1693365889554,0.03917093,1713.6,1713.4,9.6168]
[1693365890055,4.9587,1713.5,1713.4,10.08324956]
[1693365892253,4.9587,1713.5,1713.4,11.51683132]
[1693365893059,2.4908,1713.5,1713.4,11.51683132]
[1693365893258,2.4512,1713.7,1713.4,13.04662399]
[1693365893458,5.0146,1713.7,1713.6,8.4498]
[1693365893654,5.05377093,1713.7,1713.6,8.4498]
[1693365898061,5.05377093,1713.7,1713.5,5.242]
[1693365898258,8.85258804,1713.7,1713.5,5.242]
[1693365898756,8.85258804,1713.7,1713.4,4.84124956]
[1693365898958,8.85258804,1713.7,1713.5,5.242]
[1693365899356,8.81341711,1713.7,1713.6,5.242]
[1693365899557,5.0146,1713.7,1713.6,5.5345974]
[1693365899964,5.0146,1713.7,1713.6,8.4498]
[1693365900154,5.05377093,1713.7,1713.6,8.4498]
[1693365900356,2.5634,1713.7,1713.6,9.6167]
[1693365901157,3.79881711,1713.9,1713.6,9.6167]
[1693365901455,6.36501711,1714.0,1713.8,8.4498]
[1693365901651,3.80756881,1714.1,1713.9,5.242]
[1693365901852,0.0087517,1714.1,1714.0,13.31991824]
[1693365902059,2.72436881,1714.2,1714.0,13.31991824]
[1693365902357,4.5592509,1714.6,1714.2,5.242]
[1693365902556,4.5592509,1714.6,1714.4,8.4498]
[1693365902759,2.66357093,1714.5,1714.2,5.242]
[1693365902955,2.66357093,1714.5,1714.0,9.6164]
[1693365902956,9.8012509,1714.4,1714.0,9.6164]
[1693365903556,9.8012509,1714.4,1714.0,11.88633648]
[1693365904057,9.8012509,1714.4,1714.0,8.4498]
[1693365904359,5.242,1714.1,1713.8,3.2078]
[1693365904559,5.242,1714.1,1713.9,1.43358176]
[1693365904863,5.1226,1714.0,1713.9,1.43358176]
[1693365905358,5.1226,1714.0,1713.9,6.67558176]
[1693365906854,5.1226,1714.0,1713.9,5.242]
[1693365907861,5.1226,1714.0,1713.9,6.67558176]
[1693365908056,5.1226,1714.0,1713.9,5.242]
[1693365908463,5.1226,1714.0,1713.8,3.2078]
[1693365908659,10.3646,1714.0,1713.8,3.2078]
[1693365909770,10.3646,1714.0,1713.6,9.6167]
[1693365910663,10.3646,1714.0,1713.6,8.4498]
[1693365911567,5.242,1713.7,1713.4,4.84124956]
[1693365911763,3.2078,1713.9,1713.4,3.67424956]
[1693365911764,5.242,1713.6,1713.4,3.67424956]
[1693365912067,5.242,1713.5,1713.4,3.2078]
[1693365912366,6.98937265,1714.3,1714.0,1.1666]
[1693365912561,6.98937265,1714.3,1714.0,9.6164]
[1693365912866,6.98937265,1714.3,1714.1,1.43358176]
[1693365913066,2.4364,1714.3,1714.2,3.2078]
[1693365913265,6.98937265,1714.3,1714.2,3.2078]
[1693365913466,2.32838029,1714.3,1714.2,5.47773648]
[1693365913671,1.74478029,1714.3,1714.2,5.47773648]
[1693365913864,1.74478029,1714.3,1714.2,4.3743]
[1693365913865,0.47558029,1714.3,1714.2,4.3743]
[1693365914065,4.84297265,1714.5,1714.2,19.61319661]
[1693365914268,4.73727265,1714.5,1714.4,8.4498]
[1693365914470,0.06344041,1714.5,1714.4,10.71973648]
[1693365914664,6.0706302,1714.8,1714.6,1.166]
[1693365914665,4.55297265,1714.8,1714.6,1.166]
[1693365914866,4.52267265,1715.1,1714.8,1.1661]
[1693365915161,4.52267265,1715.1,1714.9,1.43358176]
[1693365915162,12.97247265,1715.1,1714.9,1.43358176]
[1693365915760,9.76467265,1715.1,1714.9,1.43358176]
[1693365915967,5.242,1715.1,1714.9,1.43358176]
[1693365916361,5.242,1715.1,1714.8,3.2078]
[1693365916961,5.242,1715.1,1714.9,1.43358176]
[1693365917173,5.242,1715.2,1714.9,1.43358176]
[1693365917361,10.7146,1715.3,1715.0,3.2078]
[1693365917868,2.5516,1715.3,1715.0,3.2078]
[1693365918268,2.5516,1715.3,1715.1,1.43358176]
[1693365919272,2.5516,1715.3,1715.0,5.47773648]
[1693365919668,10.7146,1715.3,1715.0,5.47773648]
[1693365920274,10.7146,1715.3,1715.0,3.2078]
[1693365920469,8.163,1715.1,1715.0,3.2078]
[1693365920675,8.163,1715.1,1714.8,3.2078]
[1693365921967,8.163,1714.9,1714.6,3.2078]
[1693365924572,11.3708,1714.9,1714.4,3.2078]
[1693365924773,8.163,1714.7,1714.4,3.2078]
[1693365924978,8.163,1714.7,1714.2,11.3708]
[1693365924979,11.3708,1714.7,1714.2,11.3708]
[1693365925278,11.3708,1714.7,1714.2,3.2078]
[1693365925279,8.163,1714.5,1714.2,3.2078]
[1693365925883,8.163,1714.4,1714.2,3.2078]
[1693365926275,8.163,1714.4,1713.9,9.3297]
[1693365926476,11.3708,1714.3,1713.8,3.2078]
[1693365926672,11.3708,1714.3,1713.8,11.3708]
[1693365927283,8.163,1714.1,1713.8,3.2078]
[1693365927582,8.163,1714.1,1713.7,8.163]
[1693365929181,8.163,1714.1,1713.6,3.2078]
[1693365929182,8.163,1714.0,1713.6,3.2078]
[1693365929589,8.163,1714.0,1713.7,7.44559297]
[1693365929985,8.163,1714.0,1713.8,1.43358176]
[1693365930183,8.163,1714.0,1713.7,7.44559297]
[1693365930387,8.163,1714.0,1713.6,3.2078]
[1693365932087,8.163,1713.9,1713.6,3.2078]
[1693365935191,8.17175274,1713.9,1713.6,3.21655274]
[1693365937891,0.00875274,1713.9,1713.7,9.59658176]
[1693365938592,0.00875274,1713.9,1713.8,13.64073648]
[1693365942797,0.00875274,1713.9,1713.8,11.3708]
[1693365944900,0.00875274,1713.9,1713.8,8.163]
[1693365951899,0.00875274,1713.9,1713.7,11.86651824]
[1693365952304,0.00875274,1713.9,1713.8,5.252]
[1693365955399,0.00875274,1713.9,1713.8,6.68558176]
[1693365958603,0.00875274,1713.9,1713.8,23.93679794]
[1693365958809,0.00875274,1713.9,1713.8,35.13968381]
[1693365965209,0.00875274,1713.9,1713.8,35.13881854]
[1693365965402,2.6327,1714.3,1713.9,2.26993648]
[1693365965610,2.6327,1714.3,1714.2,5.252]
[1693365965811,2.6327,1714.3,1714.2,6.68558176]
[1693365966011,2.6327,1714.3,1714.2,8.95551824]
[1693365966205,2.6327,1714.3,1714.2,20.15660221]
[1693365966420,2.4967,1714.5,1714.2,27.67315473]
[1693365966610,2.4967,1714.5,1714.4,5.252]
[1693365966913,2.4967,1714.5,1714.4,8.95551824]
[1693365967210,5.55614102,1714.7,1714.4,20.15598509]
[1693365967412,6.0223059,1714.7,1714.5,5.252]
[1693365967616,6.0223059,1714.7,1714.5,12.90974766]
[1693365968415,6.0223059,1714.7,1714.6,1.43358176]
[1693365968615,5.55614102,1714.7,1714.6,8.95551824]
[1693365969013,2.5287,1714.7,1714.6,8.95551824]
[1693365969614,3.02744102,1714.8,1714.6,20.1551848]
[1693365969820,3.03618916,1714.8,1714.7,5.252]
[1693365970016,0.00874814,1714.8,1714.7,5.252]
[1693365970217,0.00874814,1714.8,1714.7,8.4598]
[1693365972708,0.00874814,1714.8,1714.7,28.37313982]
[1693365972912,3.03343624,1715.2,1714.8,7.52193648]
[1693365973216,1.9524,1715.3,1715.1,6.4179]
[1693365973419,2.45033624,1715.5,1715.2,10.72973648]
[1693365973718,2.45033624,1715.5,1715.4,5.252]
[1693365973909,2.45033624,1715.5,1715.4,7.52193648]
[1693365974113,3.79179531,1715.9,1715.4,21.02190853]
[1693365974312,3.79179531,1715.9,1715.8,5.252]
[1693365974517,3.79179531,1716.0,1715.8,8.95551824]
[1693365974717,3.79179531,1716.0,1715.9,5.252]
[1693365975224,3.79179531,1716.2,1715.9,5.252]
[1693365975427,3.79179531,1716.2,1716.0,5.252]
[1693365975723,3.79179531,1716.2,1716.0,8.95551824]
[1693365975921,0.46350438,1716.2,1716.1,5.252]
[1693365976126,3.79179531,1716.4,1716.1,12.73402856]
[1693365976323,4.2620185,1716.4,1716.3,5.252]
[1693365976524,0.49699691,1716.4,1716.3,5.252]
[1693365976824,4.28879222,1716.4,1716.2,7.52193648]
[1693365977131,3.2078,1716.3,1716.2,7.52193648]
[1693365977333,3.2078,1716.5,1716.2,11.86151824]
[1693365977519,3.2078,1716.3,1716.2,11.86151824]
[1693365977825,3.23457854,1716.3,1716.2,10.42793648]
[1693365978030,3.23457854,1716.3,1716.2,9.59158176]
[1693365979527,3.23457854,1716.3,1716.1,8.158]
[1693365979724,3.2078,1716.3,1716.1,8.158]
[1693365981428,3.2078,1716.3,1716.0,0.00874024]
[1693365981429,8.18478211,1716.2,1716.0,0.00874024]
[1693365981626,3.23458211,1716.1,1716.0,0.00874024]
[1693365982927,3.23458211,1716.1,1716.0,9.600322]
[1693365984227,0.02678211,1716.1,1716.0,9.600322]
[1693365984525,5.7001,1716.3,1716.0,9.600322]
[1693365984732,5.7001,1716.3,1716.2,8.158]
[1693365984925,5.72687632,1716.3,1716.2,8.158]
[1693365985121,5.72687632,1716.3,1716.2,9.59158176]
[1693365985321,2.4923,1716.3,1716.2,9.59158176]
[1693365985524,5.7001,1716.3,1716.2,8.158]
[1693365985734,6.20408167,1716.3,1716.0,8.16674024]
[1693365986030,3.2078,1716.1,1716.0,8.16674024]
[1693365986432,3.2078,1716.1,1716.0,9.600322]
[1693365988937,6.17730263,1716.3,1716.0,9.600322]
[1693365989134,2.4923,1716.3,1716.2,8.158]
[1693365989337,2.39733948,1716.5,1716.2,9.59158176]
[1693365989539,2.39733948,1716.5,1716.4,8.158]
[1693365989736,2.42411308,1716.5,1716.4,9.59158176]
[1693365990435,2.39733948,1716.5,1716.4,9.59158176]
[1693365991936,0.45903741,1716.6,1716.4,17.06297632]
[1693365992138,13.722,1716.7,1716.5,10.42793648]
[1693365992339,0.02677146,1716.6,1716.5,10.42793648]
[1693365992937,3.79179531,1717.8,1717.3,1.1642]
[1693365993141,3.7598807,1717.9,1717.7,19.5238]
[1693365993437,2.02006409,1717.9,1717.8,8.158]
[1693365993637,5.25353058,1717.9,1717.8,8.158]
[1693365993838,4.67103058,1717.9,1717.8,8.158]
[1693365994237,5.14338916,1717.9,1717.8,8.158]
[1693365994435,0.49802507,1717.9,1717.8,9.59158176]
[1693365995042,3.97878916,1717.9,1717.7,8.158]
[1693365995340,0.02566649,1717.8,1717.7,8.158]
[1693365995539,0.02566649,1717.8,1717.7,8.16673184]
[1693365997145,0.02566649,1717.8,1717.7,9.6003136]
[1693365997342,0.02566649,1717.8,1717.7,8.16673184]
[1693365997537,0.02566649,1717.8,1717.7,9.6003136]
[1693365998746,0.29863058,1717.8,1717.7,8.16673184]
[1693365999841,0.29863058,1717.8,1717.7,9.6003136]
[1693366000042,0.02566649,1717.8,1717.7,8.16673184]
[1693366000243,0.29863058,1717.8,1717.7,8.16673184]
[1693366000437,0.29863058,1717.8,1717.7,9.6003136]
[1693366000641,0.29863058,1717.8,1717.7,8.16673184]
[1693366001145,0.29863058,1717.8,1717.7,9.6003136]
[1693366001338,0.29863058,1717.8,1717.7,8.16673184]
[1693366003450,0.02566649,1717.8,1717.7,9.6003136]
[1693366003645,0.29863058,1717.8,1717.7,9.6003136]
[1693366004044,0.02566649,1717.8,1717.7,9.6003136]
[1693366006046,0.29863058,1717.8,1717.7,8.16673184]
[1693366007158,0.02566649,1717.8,1717.7,9.6003136]
[1693366007452,8.158,1718.1,1718.0,15.12094258]
[1693366007651,11.39147059,1718.1,1718.0,15.12094258]
[1693366008051,11.66443468,1718.1,1718.0,15.12094258]
[1693366008651,11.66443468,1718.1,1718.0,16.55452434]
[1693366008652,11.39147059,1718.1,1718.0,16.55452434]
[1693366008854,11.66443468,1718.1,1718.0,15.12094258]
[1693366009655,12.13157231,1718.1,1718.0,15.12094258]
[1693366011247,3.97357231,1718.1,1718.0,15.12094258]
[1693366012342,12.13157231,1718.1,1718.0,15.12094258]
[1693366012545,12.13157231,1718.1,1717.6,1.1642]
[1693366012751,3.2078,1717.9,1717.6,1.1642]
[1693366012947,0.29863468,1717.8,1717.5,9.3222]
[1693366013152,3.23347059,1717.7,1717.4,9.3223]
[1693366013352,0.29863468,1717.6,1717.4,9.3223]
[1693366013648,0.27296409,1717.6,1717.5,1.43358176]
[1693366013853,0.02464169,1717.6,1717.5,1.43358176]
[1693366014251,0.29760578,1717.6,1717.5,1.43358176]
[1693366014847,0.02464169,1717.6,1717.5,9.59158176]
[1693366016252,0.29760578,1717.6,1717.5,8.158]
[1693366016459,0.29760178,1717.6,1717.5,8.158]
[1693366017457,0.29760178,1717.6,1717.5,9.59158176]
[1693366017661,0.29760178,1717.6,1717.5,8.158]
[1693366018155,0.29760312,1717.6,1717.5,8.158]
[1693366018753,0.29760312,1717.6,1717.5,7.688]
[1693366018953,0.29760312,1717.6,1717.4,8.158]
[1693366019154,0.02463903,1717.5,1717.4,8.158]
[1693366019349,3.23243903,1717.5,1717.4,8.158]
[1693366020159,3.23243903,1717.5,1717.4,8.058]
[1693366020360,3.23243903,1717.5,1717.4,7.688]
[1693366020554,0.02463903,1717.5,1717.4,9.12158176]
[1693366021859,0.02463903,1717.5,1717.4,9.59158176]
[1693366023465,5.8114,1717.7,1717.4,9.59158176]
[1693366023667,0.29760291,1717.6,1717.4,1.43358176]
[1693366023962,0.27296409,1717.6,1717.5,8.158]
[1693366024163,0.29760414,1717.6,1717.5,8.158]
[1693366024358,0.29760414,1717.6,1717.4,1.43358176]
[1693366024559,0.27296409,1717.6,1717.3,14.80887009]
[1693366025057,0.02464129,1717.5,1717.3,9.33113361]
[1693366025258,0.27296409,1717.4,1717.3,9.33113361]
[1693366025563,0.27296409,1717.4,1717.3,1.17313361]
[1693366026762,0.29760656,1717.4,1717.3,2.60671537]
[1693366027659,0.02464247,1717.4,1717.3,10.76471537]
[1693366028662,0.02464186,1717.6,1717.3,10.76471537]
[1693366028861,0.29760595,1717.5,1717.3,10.76471537]
[1693366029060,0.02464186,1717.4,1717.3,10.76471537]
[1693366029263,0.02464186,1717.6,1717.3,10.76471537]
[1693366029460,0.29760595,1717.5,1717.3,10.76471537]
[1693366029666,0.02464186,1717.4,1717.3,1.17313361]
[1693366030067,0.29760595,1717.4,1717.3,1.17313361]
[1693366031275,0.27296409,1717.4,1717.3,1.17313361]
[1693366031565,0.29760797,1717.4,1717.3,1.17313361]
[1693366031967,0.02464388,1717.4,1717.3,10.76471537]
[1693366032665,0.29760797,1717.4,1717.3,9.33113361]
[1693366033068,3.29129133,1717.4,1717.3,10.76471537]
[1693366033363,3.29129133,1717.4,1717.3,9.33113361]
[1693366033974,0.29760797,1717.4,1717.3,10.76471537]
[1693366034167,3.3283232,1717.4,1717.3,9.33113361]
[1693366034363,0.29760797,1717.4,1717.3,9.33113361]
[1693366034873,3.03071516,1717.5,1717.3,13.97251537]
[1693366035072,3.76174931,1717.6,1717.4,11.59223648]
[1693366035073,6.79246447,1717.6,1717.4,11.59223648]
[1693366035375,3.03071516,1717.5,1717.4,3.43423648]
[1693366035572,3.03071516,1717.5,1717.4,11.59223648]